Cogmind - Beta 13 @@@ ROGUE MODE // 2024.04.24 @ 14:22:03 Player: Barbarossa Result: Destroyed by G-47 Trooper with Particle Gun Performance ------------- Evolutions (2) 1000 Regions Visited (3) 600 Robots Destroyed (72) 360 Value Destroyed (2178) 2178 Prototype IDs (4) 80 Alien Tech Used (0) 0 Bonus (66) 66 TOTAL SCORE: 4284 Bonus ------- High Alert Combat Kills 66 Cogmind --------- Core Integrity 0/550 Matter 184/300 Energy 97/100 System Corruption 0% Temperature Cool (9) Movement Rolling (200) Ox8 Location -8/Materials Parts ------- > --- POWER (1) -------- (None) > --- PROPULSION (4) --- Wheel > --- UTILITY (4) ------ Huge Storage Unit > --- WEAPON (2) ------- Enhanced Autogun Enhanced Autogun > --- INVENTORY (25) --- Improved Heat Sink Improved Heat Sink Improved Heat Sink Huge Storage Unit High-capacity Matter Pod (200) Improved Sensor Array Targeting Computer Improved Targeting Computer Target Analyzer Target Analyzer Improved Weapon Shielding Improved Weapon Shielding Pulse Rifle Heavy Particle Gun Enhanced Autogun Enhanced Autogun Datajack Peak State ------------ > --- POWER ------------ Light Angular Momentum Engine > --- PROPULSION ------- Armored Treads Armored Treads Compact Wheel Compact Wheel > --- UTILITY ---------- Improved Heat Sink Huge Storage Unit Machine Analyzer Visual Processing Unit > --- WEAPON ----------- Heavy Particle Gun Heavy Particle Gun > --- INVENTORY -------- Nuclear Core Armored Treads Armored Treads Compact Wheel Improved Heat Sink Improved Heat Sink Improved Heat Sink Huge Storage Unit High-capacity Matter Pod Improved Sensor Array Targeting Computer Improved Targeting Computer Target Analyzer Target Analyzer Particle Charger Improved Weapon Shielding Improved Weapon Shielding Heavy Particle Gun Precision Beam Rifle Enhanced Autogun Enhanced Autogun Enhanced Autogun Enhanced Autogun Grenade Launcher Datajack [Rating: 36] Favorites ----------- Power Ion Engine Engine Ion Engine Power Core Nuclear Core Propulsion Light Treads Treads Light Treads Leg Aluminum Leg Wheel Compact Wheel Utility Huge Storage Unit Device Heat Sink Storage Huge Storage Unit Processor Visual Processing Unit Protection Medium Armor Plating Weapon Particle Gun Energy Gun Particle Gun Ballistic Gun Enhanced Autogun Launcher Grenade Launcher Build | -11 -10 -9 -8 ------- Run | Yrd Mat Mat Mat Slots Evolved 4 | . . 2 2 Power . | . . . . Propulsion 2 | . . 2 . Utility 2 | . . . 2 Weapon . | . . . . Parts Attached 63 | 1 14 6 42 Power 9 | . 3 1 5 Engine 7 | . 3 . 4 Core 2 | . . 1 1 Reactor . | . . . . Propulsion 30 | . 7 2 21 Treads 15 | . 2 2 11 Leg . | . . . . Wheel 15 | . 5 . 10 Hover . | . . . . Flight . | . . . . Utility 8 | . 2 1 5 Device 4 | . 1 1 2 Storage 1 | . 1 . . Processor 2 | . . . 2 Hackware . | . . . . Protection 1 | . . . 1 Artifact . | . . . . Weapon 16 | 1 2 2 11 Energy Gun 11 | 1 2 2 6 Energy Cannon . | . . . . Ballistic Gun 4 | . . . 4 Ballistic Cannon . | . . . . Launcher 1 | . . . 1 Special Weapon . | . . . . Impact Weapon . | . . . . Slashing Weapon . | . . . . Piercing Weapon . | . . . . Special Melee Weapon . | . . . . Unidentified Prototypes 3 | . . . 3 Parts Lost 33 | . 7 3 23 Power 5 | . 2 . 3 Propulsion 15 | . 3 1 11 Utility 5 | . . . 5 Weapon 8 | . 2 2 4 Highest Loss Streak 11 | . 5 2 11 To Critical Strikes . | . . . . Average Slot Usage (%) 85 | . 82 92 88 Engine 9 | . 13 5 5 Core 1 | . . 5 2 Treads 10 | . 2 22 17 Wheel 11 | . 8 15 14 Device 10 | . 12 11 8 Storage 12 | . 14 11 9 Processor 4 | . . . 11 Energy Gun 21 | . 28 21 12 Ballistic Gun 1 | . . . 4 Naked Turns . | . . . . Heaviest Build 101 | 11 91 91 101 Greatest Support 40 | 20 40 32 40 Greatest Overweight (x) 30 | . 29 5 30 Average Overweight (x) 4 | . 6 3 3 Largest Inventory Capacity 25 | 8 25 25 25 Average Capacity 24 | 8 24 25 25 Most Carried 25 | 6 16 25 25 Average Carried 16 | 5 10 20 23 Final Capacity 25 | 8 25 25 25 Final Carried 24 | 6 16 24 17 Class Distribution -------------------- 71% | Scavenger-Mutant 28% | Mutant Dominant Class ---------------- Scavenger-Mutant | -10/Materials Mutant | -9/Materials Scavenger-Mutant | -8/Materials Resources | -11 -10 -9 -8 ----------- Run | Yrd Mat Mat Mat Matter Collected 1133 | 200 273 117 543 Remotely . | . . . . Salvage Created 3092 | 59 895 331 1807 Parts 137 | 2 38 17 80 Haulers Intercepted 5 | . 1 . 4 Recyclers Shooed 6 | 1 3 . 2 Parts Field Recycled . | . . . . Retrieved Matter . | . . . . Parts Self-Destructed . | . . . . Prevented . | . . . . Kills | -11 -10 -9 -8 ------- Run | Yrd Mat Mat Mat Combat Hostiles Destroyed 51 | . 15 7 29 Guns 43 | . 14 7 22 AOE 6 | . . . 6 Classes Destroyed 11 | 1 6 1 3 Worker 2 | . 1 . 1 Builder 2 | . . . 2 Tunneler 1 | . 1 . . Hauler 5 | . 1 . 4 Recycler 9 | 1 4 . 4 Watcher 2 | . 1 . 1 Swarmer 6 | . 3 . 3 Grunt 36 | . 12 6 18 Sentry 7 | . . 1 6 Specialist 1 | . . . 1 Heavy 1 | . . . 1 Best Kill Streak 9 | 1 9 3 9 Combat Bots Only 7 | . 7 3 7 Max Kills in Single Turn 2 | 1 1 1 2 Gunslinging 1 | . . . 1 Exploded 2 | . . . 2 Melee . | . . . . Uniques/NPCs Destroyed . | . . . . Combat | -11 -10 -9 -8 -------- Run | Yrd Mat Mat Mat Hostile Shots Fired 438 | . 124 30 284 Missed 129 | . 41 8 80 Damage Taken 4648 | . 866 271 3511 Core 836 | . 206 72 558 Absorbed by Shields . | . . . . Core Remaining (%) 66 | 100 17 82 . Volleys Fired 230 | 3 77 22 128 Largest 2 | 2 2 2 2 Hottest 115 | 90 105 115 115 Shots Fired 441 | 6 153 41 241 Gun 435 | 6 153 41 235 Cannon . | . . . . Launcher 6 | . . . 6 Special . | . . . . Kinetic 61 | . . . 61 Thermal 374 | 6 153 41 174 Explosive 6 | . . . 6 Electromagnetic . | . . . . Robot Hit Streak 19 | 3 10 19 11 Robot Miss Streak 5 | 1 4 2 5 Penetration Max . | . . . . Secondary Targets 11 | . 5 1 5 Max Gunslinging Chain 1 | . 1 1 1 Shots Hit Robots 274 | 5 88 28 153 Core Hits 140 | 2 38 14 86 Critical Kills 1 | . . . 1 Critical Parts Destroyed . | . . . . Critical Strikes 10 | . 3 . 7 Burn 9 | . 3 . 6 Destroy 1 | . . . 1 Melee Attacks . | . . . . Impact . | . . . . Slashing . | . . . . Piercing . | . . . . Sneak Attacks . | . . . . Combat Hostiles . | . . . . Follow-up Attacks . | . . . . Damage Inflicted 5031 | 60 1175 353 3443 Guns 4317 | 60 1175 353 2729 Cannons . | . . . . Explosions 714 | . . . 714 Melee . | . . . . Ramming . | . . . . Kinetic 664 | . . . 664 Thermal 3653 | 60 1175 353 2065 Explosive 525 | . . . 525 Electromagnetic 189 | . . . 189 Impact . | . . . . Slashing . | . . . . Piercing . | . . . . Highest Corruption . | . . . . Average Corruption . | . . . . Corruption Purged . | . . . . Corruption Blocked . | . . . . Overload Shots . | . . . . Overflow Damage 10 | . . . 10 Projectiles . | . . . . Explosions 10 | . . . 10 Melee . | . . . . Knockbacks . | . . . . Impact . | . . . . Kinetic . | . . . . Secondary . | . . . . Self-Inflicted Damage 30 | . . . 30 Shots 1 | . . . 1 Rammed . | . . . . Targets Rammed . | . . . . Kicked . | . . . . Crushed . | . . . . Highest Temperature 293 | 90 228 60 293 Average Temperature 53 | 48 67 18 46 Received Heat Transfer 2133 | . 375 147 1611 Siege Activations . | . . . . Robots Corrupted . | . . . . Combat Hostiles . | . . . . Parts Fried . | . . . . Impact Corruptions . | . . . . Robots Melted 2 | . 1 . 1 Combat Hostiles 2 | . 1 . 1 Parts Melted 23 | . 9 . 14 Heat Transferred 8826 | 149 3050 928 4699 Parts Sabotaged . | . . . . Parts Stolen . | . . . . Parts Stripped . | . . . . Power Chain Reactions . | . . . . Alert | -11 -10 -9 -8 ------- Run | Yrd Mat Mat Mat Peak Influence 539 | 5 295 215 539 Initial 90 | . 3 27 90 Average 158 | 3 84 105 271 Maximum Alert Level 2 | . 1 1 2 Low Security (%) 63 | 100 90 82 23 Level 1 33 | . 9 17 69 Level 2 2 | . . . 6 Level 3 . | . . . . Level 4 . | . . . . Level 5 . | . . . . High Security . | . . . . Max Security . | . . . . Squads Dispatched 10 | . 2 1 7 Investigation 3 | . 1 1 1 Extermination . | . . . . Reinforcement 4 | . 1 . 3 Assault . | . . . . Garrison 3 | . . . 3 Intercept . | . . . . Searches Triggered . | . . . . Construction Impeded 1 | . . . 1 Haulers Reinforced . | . . . . Active Scanning Responses . | . . . . Cargo Convoy Interrupts . | . . . . Stealth | -11 -10 -9 -8 --------- Run | Yrd Mat Mat Mat Distress Signals 5 | . 1 . 4 Communications Jammed . | . . . . Distress Signals . | . . . . Times Spotted 75 | . 21 10 44 Peak Tracking Total 6 | . 5 6 4 Tactical Retreats 2 | . . . 2 Traps | -11 -10 -9 -8 ------- Run | Yrd Mat Mat Mat Traps Triggered 2 | . 1 . 1 Indirectly . | . . . . Trap Hack Attempts . | . . . . Triggered . | . . . . Disarmed . | . . . . Reprogrammed . | . . . . Reused . | . . . . Traps Extracted . | . . . . Installed . | . . . . Triggered . | . . . . Machines | -11 -10 -9 -8 ---------- Run | Yrd Mat Mat Mat Machines Disabled 5 | . 1 . 4 Max in Single Turn 1 | . 1 . 1 Machines Repaired . | . . . . Machines Dismantled . | . . . . Machines Sabotaged . | . . . . Overloaded Fab Kills . | . . . . Hacking | -11 -10 -9 -8 --------- Run | Yrd Mat Mat Mat Machines Accessed 8 | . 3 1 4 Terminals 7 | . 3 . 4 Fabricators . | . . . . Repair Stations . | . . . . Recycling Units . | . . . . Scanalyzers 1 | . . 1 . Garrison Access . | . . . . Total Hacks 29 | . 10 3 16 Successful 11 | . 3 2 6 Failed 18 | . 7 1 10 Catastrophic 3 | . . . 3 Database Lockouts . | . . . . Manual 21 | . 10 . 11 Terminals 26 | . 10 . 16 Fabricators . | . . . . Repair Stations . | . . . . Recycling Units . | . . . . Scanalyzers 3 | . . 3 . Garrison Access . | . . . . Terminal Hacks 4 | . 1 . 3 Prototype ID Bank 1 | . . . 1 Terminal Index 3 | . 1 . 2 Fabricator Hacks . | . . . . Repair Station Hacks . | . . . . Recycling Unit Hacks . | . . . . Scanalyzer 2 | . . 2 . Insert Component 1 | . . 1 . Analyze 1 | . . 1 . Garrison Access Hacks . | . . . . Unauthorized Hacks 5 | . 2 . 3 Terminals 5 | . 2 . 3 Botnet 5 | . 2 . 3 Fabricators . | . . . . Repair Stations . | . . . . Recycling Units . | . . . . Scanalyzers . | . . . . Garrison Access . | . . . . Data Cores Recovered . | . . . . Used . | . . . . Hacking Detections 8 | . 3 1 4 Full Trace Events 1 | . . 1 . Feedback Events . | . . . . Feedback Blocked . | . . . . Robot Schematics Acquired . | . . . . Robots Built . | . . . . Authchips . | . . . . Time . | . . . . Total Robot Build Rating . | . . . . Part Schematics Acquired 1 | . . 1 . Parts Built . | . . . . Authchips . | . . . . Time . | . . . . Total Part Build Rating . | . . . . Parts Repaired . | . . . . Time . | . . . . Parts Recycled . | . . . . Recycled Matter . | . . . . Retrieved Matter . | . . . . Retrieved Components . | . . . . Parts Scanalyzed 1 | . . 1 . Part Schematics Acquired 1 | . . 1 . Parts Damaged . | . . . . Bothacking | -11 -10 -9 -8 ------------ Run | Yrd Mat Mat Mat Used RIF Installer . | . . . . Robots Hacked . | . . . . Non-combat . | . . . . Combat . | . . . . Robot Hacks Applied . | . . . . Relay Couplers Released . | . . . . Fabnet Peak Effective % . | . . . . Robots Rewired . | . . . . Allies Hacked . | . . . . Hacks Repelled . | . . . . Allies | -11 -10 -9 -8 -------- Run | Yrd Mat Mat Mat Total Allies . | . . . . Largest Group . | . . . . Highest-Rated Group . | . . . . Highest-Rated Ally . | . . . . Total Orders . | . . . . Ally Attacks . | . . . . Total Damage . | . . . . Kills . | . . . . Allies Corrupted . | . . . . Allies Melted . | . . . . Intel | -11 -10 -9 -8 ------- Run | Yrd Mat Mat Mat Robot Analysis Total . | . . . . Derelict Logs Recovered . | . . . . Drone Launches . | . . . . Drone Recoveries . | . . . . Exploration | -11 -10 -9 -8 ------------- Run | Yrd Mat Mat Mat Turns Passed 2831 | 25 1369 346 1091 Spaces Moved 837 | 12 310 164 351 Core 48 | . 45 . 3 Treads 35 | . 24 . 11 Legs 26 | 12 14 . . Wheels 728 | . 227 164 337 Hover . | . . . . Flight . | . . . . Fastest Speed 120 | 120 120 130 130 Average Speed 230 | 120 353 150 161 Slowest Speed 1550 | 120 1500 175 1550 Overloaded Moves . | . . . . Propulsion Burnouts . | . . . . Robots Hopped . | . . . . Cave-ins Triggered . | . . . . Exploration Rate (%) 26 | 3 48 23 33 Regions Visited 3 Branch Regions . Pre-discovered Areas . | . . . . Known Exits Taken . | . . . . Unknown Exits Taken 3 | 1 1 1 . Scrap Searched . | . . . . Spaces Dug . | . . . . Terrain Destroyed 33 | . . . 33 Melee . | . . . . Projectile 1 | . . . 1 AOE 32 | . . . 32 Terrain Rammed . | . . . . Walls Destroyed . | . . . . Machines Disabled . | . . . . Actions | -11 -10 -9 -8 --------- Run | Yrd Mat Mat Mat Total 1334 | 17 427 224 666 Wait 111 | . 5 11 95 Move 834 | 11 309 163 351 Hop . | . . . . Pick Up 61 | 1 20 17 23 Fast Attach 4 | . . . 4 Attach 34 | 1 9 4 20 Detach 2 | . . . 2 Swap 25 | . 5 2 18 Drop 33 | 1 2 5 25 Fire 230 | 3 77 22 128 Melee . | . . . . Ram . | . . . . Kick . | . . . . Crush . | . . . . Escape Stasis . | . . . . Rewire . | . . . . Trap . | . . . . Miscellaneous . | . . . . Route ------- -11/Scrapyard -10/Materials (discovered 2 exits: *Mat / [*Min]) -9/Materials -8/Materials (discovered 1 exit: [*Fac]) History --------- Turn | Location | Event 3 | -11/Scrapyard | Discovered new exit (range 1) 26 | -11/Scrapyard | Entered Materials 244 | -10/Materials | Discovered new exit (range 6) 267 | -10/Materials | Core integrity fell below 50% 349 | -10/Materials | Lost 5 parts (2p1n2w) 354 | -10/Materials | Destroyed 7 combat bots 658 | -10/Materials | Build established: Scavenger-Mutant 1145 | -10/Materials | Discovered new exit (range 16) 1256 | -10/Materials | Core integrity fell below 20% 1395 | -10/Materials | Entered another Materials area 1395 | -9/Materials | Evolved 2 slots: Propulsion x2 1704 | -9/Materials | Discovered new exit (range 8) 1741 | -9/Materials | Entered another Materials area 1741 | -8/Materials | Evolved 2 slots: Utility x2 2593 | -8/Materials | Garrison activated, responded to threat 2619 | -8/Materials | Core integrity fell below 50% 2651 | -8/Materials | Discovered new exit (range 17) 2746 | -8/Materials | Core integrity fell below 20% 2780 | -8/Materials | Lost 11 parts (1p4n4u2w) 2795 | -8/Materials | Destroyed 7 combat bots 2832 | -8/Materials | Destroyed by G-47 Trooper with Particle Gun Last Messages --------------- 02812_ U-05 Engineer lays Concrete. 02813_ The unstable cave ceiling collapses. 02814_ Critical hit (Burn: +37). 02814_ Y-45 Defender destroyed. 02814_ U-05 Engineer lays Concrete. 02815_ K-01 Serf collects debris. 02816_ U-05 Engineer lays Concrete. 02819_ K-01 Serf collects debris. 02819_ U-05 Engineer lays Concrete. 02820_ Arm. Treads destroyed. 02820_ K-01 Serf collects debris. 02820_ U-05 Engineer lays Concrete. 02822_ Arm. Treads destroyed. 02823_ U-05 Engineer lays Concrete. 02823_ K-01 Serf collects debris. 02824_ U-05 Engineer lays Concrete. 02826_ K-01 Serf collects debris. 02826_ Y-45 Defender destroyed. 02826_ U-05 Engineer lays Concrete. 02831_ U-05 Engineer builds a Wall. Map ----- +----------------------------------------------------+ | ??# # #?????????????????????????????? | | # ##+####+####### #?????????????????????????????? | | # % ! = [[= ###########???????????????????? | | # % =![*][! + #???????????????????? | | ####+## ####=##### ##%=== #???????????????????? | | ??""??# #??#*#???# ##* !/= #???"""?????????????? | | ?""S??# #??# #???# ## ==/ #???"""?????????????? | | ?""???# #??#+#???# ## #???"""?????????????? | | ??????# #?? ???# ## "" #???????????????????? | | ??????# #?? """??# ##%=""" #???????????????????? | | ??????# #?? """??# ##=%""" #???????????????????? | | ??????# #?? """??# ## [* #???????????????????? | | ??????# #?? ??## ######;###### ##??????????????? | | #######+##? """?# ??????? | | * #? """?+ #####+##??????????????? | | #? """?# ![ #?????????????????????? | | """ """ #? ????### ####%! #?????????????????????? | | """ """ #? ?"""###/####! #?????????????????????? | | """ """ #????R"# * %[=# #?????????????????????? | | ##########???"""#] !=%=# #?????????????????????? | | ????????????????# != #% #?????????????????????? | | ????????????????# %+[ #?????????????????????? | | ????????????????# #g #????????""""?????????? | | ????????????????# *%[ # a# #??????""""?????????? | | ????????????????#% ! # #?????""""?????????? | | ??????????????###### @]# #??????????????????? | | ????????????? = %%# #??????????????????? | | ????????????# """ !% kk# ##""#??????????????? | | ????????????# "G"!== ?????????? | | ????????????# " "*%=